[Event "Titled Tuesday Blitz May 31 Late 2022"]
[White "Vusatiuk, Vladimir"]
[Black "Makarian, Rudik"]
[WhiteFideId "14118610"]
[BlackFideId "44105681"]
[WhiteElo "2157"]
[BlackElo "2419"]
[Result "0-1"]
[Round "01"]
[TimeControl "180+1"]
[Date "2022.06.01"]
[WhiteClock "0:00:12"]
[BlackClock "0:00:19"]

1. d4 {[%clk 0:03:00]}  Nf6 {[%clk 0:02:58]} 2. c4 {[%clk 0:03:01]}  e6 {[%clk 0:02:41]} 3. Nc3 {[%clk 0:03:01]}  Bb4 {[%clk 0:02:40]} 4. e3 {[%clk 0:03:01]}  O-O {[%clk 0:02:39]} 5. Nf3 {[%clk 0:03:00]}  Bxc3+ {[%clk 0:02:38]} 6. bxc3 {[%clk 0:03:00]}  d6 {[%clk 0:02:38]} 7. Bd3 {[%clk 0:03:00]}  e5 {[%clk 0:02:37]} 8. dxe5 {[%clk 0:02:47]}  dxe5 {[%clk 0:02:38]} 9. Nxe5 {[%clk 0:02:47]}  Qe7 {[%clk 0:02:39]} 10. Nf3 {[%clk 0:02:41]}  Nc6 {[%clk 0:02:38]} 11. O-O {[%clk 0:02:39]}  Bg4 {[%clk 0:02:38]} 12. h3 {[%clk 0:02:36]}  Bh5 {[%clk 0:02:30]} 13. Be2 {[%clk 0:02:30]}  Rfd8 {[%clk 0:02:26]} 14. Qb3 {[%clk 0:02:24]}  b6 {[%clk 0:02:15]} 15. Ba3 {[%clk 0:02:18]}  Qe8 {[%clk 0:02:00]} 16. c5 {[%clk 0:02:15]}  Ne4 {[%clk 0:01:52]} 17. Rfd1 {[%clk 0:02:00]}  Bxf3 {[%clk 0:01:47]} 18. Bxf3 {[%clk 0:01:57]}  Nd2 {[%clk 0:01:47]} 19. Qa4 {[%clk 0:01:27]}  Nxf3+ {[%clk 0:01:46]} 20. gxf3 {[%clk 0:01:28]}  Qe6 {[%clk 0:01:46]} 21. Qe4 {[%clk 0:01:19]}  Ne5 {[%clk 0:01:41]} 22. f4 {[%clk 0:01:12]}  Nc4 {[%clk 0:01:40]} 23. Qxe6 {[%clk 0:01:09]}  fxe6 {[%clk 0:01:41]} 24. Bb4 {[%clk 0:00:45]}  a5 {[%clk 0:01:42]} 25. cxb6 {[%clk 0:00:44]}  axb4 {[%clk 0:00:49]} 26. Rxd8+ {[%clk 0:00:42]}  Rxd8 {[%clk 0:00:50]} 27. bxc7 {[%clk 0:00:42]}  Rc8 {[%clk 0:00:49]} 28. cxb4 {[%clk 0:00:43]}  Rxc7 {[%clk 0:00:48]} 29. Rc1 {[%clk 0:00:43]}  Kf7 {[%clk 0:00:43]} 30. b5 {[%clk 0:00:38]}  Rc8 {[%clk 0:00:41]} 31. a4 {[%clk 0:00:30]}  Ke7 {[%clk 0:00:39]} 32. a5 {[%clk 0:00:26]}  Kd7 {[%clk 0:00:39]} 33. b6 {[%clk 0:00:24]}  Nxa5 {[%clk 0:00:38]} 34. Ra1 {[%clk 0:00:17]}  Nc6 {[%clk 0:00:37]} 35. Rd1+ {[%clk 0:00:15]}  Ke7 {[%clk 0:00:37]} 36. b7 {[%clk 0:00:15]}  Rb8 {[%clk 0:00:36]} 37. Rc1 {[%clk 0:00:16]}  Kd6 {[%clk 0:00:36]} 38. Rb1 {[%clk 0:00:13]}  Nd8 {[%clk 0:00:32]} 39. Rb6+ {[%clk 0:00:12]}  Ke7 {[%clk 0:00:32]} 40. Ra6 {[%clk 0:00:10]}  Rxb7 {[%clk 0:00:32]} 41. Kg2 {[%clk 0:00:11]}  Rd7 {[%clk 0:00:31]} 42. Ra8 {[%clk 0:00:11]}  Nf7 {[%clk 0:00:30]} 43. Rh8 {[%clk 0:00:12]}  h6 {[%clk 0:00:27]} 44. Rg8 {[%clk 0:00:10]}  Kf6 {[%clk 0:00:28]} 45. Kf3 {[%clk 0:00:10]}  Rd1 {[%clk 0:00:27]} 46. Ra8 {[%clk 0:00:09]}  Rh1 {[%clk 0:00:27]} 47. Kg2 {[%clk 0:00:10]}  Rb1 {[%clk 0:00:27]} 48. Rc8 {[%clk 0:00:10]}  Rb6 {[%clk 0:00:27]} 49. Ra8 {[%clk 0:00:10]}  e5 {[%clk 0:00:27]} 50. fxe5+ {[%clk 0:00:11]}  Nxe5 {[%clk 0:00:28]} 51. Rf8+ {[%clk 0:00:11]}  Nf7 {[%clk 0:00:28]} 52. Ra8 {[%clk 0:00:12]}  Rb5 {[%clk 0:00:27]} 53. Ra6+ {[%clk 0:00:12]}  Kg5 {[%clk 0:00:26]} 54. Ra7 {[%clk 0:00:12]}  Kg6 {[%clk 0:00:25]} 55. Ra6+ {[%clk 0:00:12]}  Kh7 {[%clk 0:00:26]} 56. Ra7 {[%clk 0:00:13]}  Ng5 {[%clk 0:00:26]} 57. Kg3 {[%clk 0:00:12]}  Ne4+ {[%clk 0:00:25]} 58. Kf3 {[%clk 0:00:13]}  Nf6 {[%clk 0:00:24]} 59. Rc7 {[%clk 0:00:12]}  Rf5+ {[%clk 0:00:23]} 60. Kg2 {[%clk 0:00:12]}  Rg5+ {[%clk 0:00:21]} 61. Kf3 {[%clk 0:00:12]}  Rf5+ {[%clk 0:00:20]} 62. Kg2 {[%clk 0:00:13]}  Ne4 {[%clk 0:00:21]} 63. f4 {[%clk 0:00:13]}  Nf6 {[%clk 0:00:19]} 64. Kf3 {[%clk 0:00:13]}  Rh5 {[%clk 0:00:19]} 65. Kg3 {[%clk 0:00:12]}  Ra5 {[%clk 0:00:20]} 66. Rc3 {[%clk 0:00:12]}  Ne4+ {[%clk 0:00:19]} 0-1


[Site "https://www.chess.com"]

[Event "Titled Tuesday Blitz May 31 Late 2022"]
[White "Vypkhaniuk, Ihor"]
[Black "Remolar Gallen, Jose"]
[WhiteFideId "14112256"]
[BlackFideId "2215187"]
[WhiteElo "2346"]
[BlackElo "2205"]
[Result "0-1"]
[Round "01"]
[TimeControl "180+1"]
[Date "2022.06.01"]
[WhiteClock "0:00:14"]
[BlackClock "0:00:10"]

1. d4 {[%clk 0:02:58]}  Nf6 {[%clk 0:02:58]} 2. c4 {[%clk 0:02:59]}  c5 {[%clk 0:02:57]} 3. d5 {[%clk 0:02:56]}  b5 {[%clk 0:02:58]} 4. cxb5 {[%clk 0:02:56]}  a6 {[%clk 0:02:58]} 5. bxa6 {[%clk 0:02:57]}  e6 {[%clk 0:02:59]} 6. dxe6 {[%clk 0:02:31]}  fxe6 {[%clk 0:02:57]} 7. g3 {[%clk 0:02:32]}  d5 {[%clk 0:02:55]} 8. Bg2 {[%clk 0:02:32]}  Bd6 {[%clk 0:02:52]} 9. Nf3 {[%clk 0:02:32]}  O-O {[%clk 0:02:52]} 10. O-O {[%clk 0:02:33]}  Bxa6 {[%clk 0:02:49]} 11. b3 {[%clk 0:02:32]}  Nc6 {[%clk 0:02:48]} 12. Bb2 {[%clk 0:02:32]}  Qe7 {[%clk 0:02:23]} 13. Nc3 {[%clk 0:02:33]}  d4 {[%clk 0:02:15]} 14. Na4 {[%clk 0:02:30]}  e5 {[%clk 0:02:14]} 15. Nd2 {[%clk 0:02:11]}  e4 {[%clk 0:02:08]} 16. Nc4 {[%clk 0:02:06]}  Bxc4 {[%clk 0:01:57]} 17. bxc4 {[%clk 0:02:07]}  Qa7 {[%clk 0:01:56]} 18. Nc3 {[%clk 0:02:01]}  dxc3 {[%clk 0:01:53]} 19. Bxc3 {[%clk 0:01:57]}  Be5 {[%clk 0:01:35]} 20. Bxe5 {[%clk 0:01:56]}  Nxe5 {[%clk 0:01:35]} 21. Qc2 {[%clk 0:01:57]}  Qa4 {[%clk 0:01:33]} 22. Bxe4 {[%clk 0:01:53]}  Qxc2 {[%clk 0:01:30]} 23. Bxc2 {[%clk 0:01:54]}  Rfd8 {[%clk 0:01:21]} 24. Rfd1 {[%clk 0:01:42]}  Rxd1+ {[%clk 0:01:16]} 25. Bxd1 {[%clk 0:01:43]}  Kf8 {[%clk 0:01:15]} 26. Bb3 {[%clk 0:01:41]}  Ne4 {[%clk 0:01:10]} 27. Rd1 {[%clk 0:01:34]}  Nc3 {[%clk 0:01:02]} 28. Rd2 {[%clk 0:01:35]}  Ke7 {[%clk 0:00:59]} 29. f4 {[%clk 0:01:32]}  Nc6 {[%clk 0:00:54]} 30. e3 {[%clk 0:01:06]}  Rd8 {[%clk 0:00:50]} 31. Rc2 {[%clk 0:01:05]}  Rd3 {[%clk 0:00:46]} 32. Kf2 {[%clk 0:00:58]}  Nb4 {[%clk 0:00:45]} 33. Rc1 {[%clk 0:00:58]}  Ne4+ {[%clk 0:00:26]} 34. Kf3 {[%clk 0:00:54]}  Nd2+ {[%clk 0:00:25]} 35. Ke2 {[%clk 0:00:53]}  Nxb3 {[%clk 0:00:25]} 36. axb3 {[%clk 0:00:53]}  Rxb3 {[%clk 0:00:26]} 37. h4 {[%clk 0:00:49]}  Rb2+ {[%clk 0:00:18]} 38. Kf3 {[%clk 0:00:49]}  Rc2 {[%clk 0:00:19]} 39. Ra1 {[%clk 0:00:48]}  Rxc4 {[%clk 0:00:19]} 40. Ra7+ {[%clk 0:00:49]}  Kf6 {[%clk 0:00:19]} 41. g4 {[%clk 0:00:48]}  h6 {[%clk 0:00:17]} 42. g5+ {[%clk 0:00:49]}  hxg5 {[%clk 0:00:18]} 43. hxg5+ {[%clk 0:00:49]}  Kg6 {[%clk 0:00:18]} 44. e4 {[%clk 0:00:46]}  Nd3 {[%clk 0:00:16]} 45. Rd7 {[%clk 0:00:36]}  Rd4 {[%clk 0:00:15]} 46. Rc7 {[%clk 0:00:36]}  Ne1+ {[%clk 0:00:07]} 47. Kg4 {[%clk 0:00:31]}  Rxe4 {[%clk 0:00:06]} 48. Rc6+ {[%clk 0:00:28]}  Kh7 {[%clk 0:00:04]} 49. g6+ {[%clk 0:00:25]}  Kh6 {[%clk 0:00:04]} 50. Kf5 {[%clk 0:00:23]}  Rd4 {[%clk 0:00:01]} 51. Rxc5 {[%clk 0:00:22]}  Rxf4+ {[%clk 0:00:01]} 52. Ke6 {[%clk 0:00:19]}  Nd3 {[%clk 0:00:02]} 53. Rc3 {[%clk 0:00:19]}  Rf6+ {[%clk 0:00:02]} 54. Kd5 {[%clk 0:00:18]}  Nf4+ {[%clk 0:00:03]} 55. Ke4 {[%clk 0:00:18]}  Nxg6 {[%clk 0:00:04]} 56. Rh3+ {[%clk 0:00:18]}  Kg5 {[%clk 0:00:04]} 57. Rg3+ {[%clk 0:00:19]}  Kh4 {[%clk 0:00:05]} 58. Rg1 {[%clk 0:00:19]}  Rf4+ {[%clk 0:00:05]} 59. Ke3 {[%clk 0:00:19]}  Rg4 {[%clk 0:00:06]} 60. Rh1+ {[%clk 0:00:19]}  Kg5 {[%clk 0:00:06]} 61. Rh7 {[%clk 0:00:20]}  Kf6 {[%clk 0:00:06]} 62. Rh5 {[%clk 0:00:20]}  Ne5 {[%clk 0:00:06]} 63. Rh8 {[%clk 0:00:18]}  Rg5 {[%clk 0:00:05]} 64. Rf8+ {[%clk 0:00:18]}  Ke7 {[%clk 0:00:06]} 65. Ra8 {[%clk 0:00:17]}  Nf7 {[%clk 0:00:06]} 66. Kf4 {[%clk 0:00:17]}  Rg6 {[%clk 0:00:06]} 67. Ra7+ {[%clk 0:00:18]}  Ke6 {[%clk 0:00:06]} 68. Ra8 {[%clk 0:00:18]}  Rf6+ {[%clk 0:00:06]} 69. Kg4 {[%clk 0:00:18]}  Ne5+ {[%clk 0:00:06]} 70. Kg5 {[%clk 0:00:18]}  Rg6+ {[%clk 0:00:07]} 71. Kf4 {[%clk 0:00:18]}  Rg4+ {[%clk 0:00:06]} 72. Ke3 {[%clk 0:00:19]}  Kf5 {[%clk 0:00:06]} 73. Rf8+ {[%clk 0:00:18]}  Kg5 {[%clk 0:00:06]} 74. Re8 {[%clk 0:00:19]}  Ng6 {[%clk 0:00:06]} 75. Ra8 {[%clk 0:00:18]}  Rf4 {[%clk 0:00:07]} 76. Ra5+ {[%clk 0:00:17]}  Rf5 {[%clk 0:00:08]} 77. Ra7 {[%clk 0:00:18]}  Kh6 {[%clk 0:00:07]} 78. Ke4 {[%clk 0:00:18]}  Re5+ {[%clk 0:00:07]} 79. Kf3 {[%clk 0:00:18]}  Re7 {[%clk 0:00:07]} 80. Ra6 {[%clk 0:00:18]}  Rf7+ {[%clk 0:00:08]} 81. Kg4 {[%clk 0:00:18]}  Rf4+ {[%clk 0:00:08]} 82. Kg3 {[%clk 0:00:18]}  Rc4 {[%clk 0:00:08]} 83. Rb6 {[%clk 0:00:18]}  Kg5 {[%clk 0:00:07]} 84. Rb5+ {[%clk 0:00:18]}  Kf6 {[%clk 0:00:08]} 85. Rb6+ {[%clk 0:00:19]}  Kf5 {[%clk 0:00:08]} 86. Rb7 {[%clk 0:00:19]}  Kf6 {[%clk 0:00:07]} 87. Rb6+ {[%clk 0:00:19]}  Kf7 {[%clk 0:00:07]} 88. Rb7+ {[%clk 0:00:20]}  Ne7 {[%clk 0:00:08]} 89. Ra7 {[%clk 0:00:20]}  g6 {[%clk 0:00:09]} 90. Ra6 {[%clk 0:00:19]}  Nf5+ {[%clk 0:00:09]} 91. Kf3 {[%clk 0:00:20]}  Rd4 {[%clk 0:00:09]} 92. Rb6 {[%clk 0:00:19]}  Kg7 {[%clk 0:00:09]} 93. Rb8 {[%clk 0:00:19]}  Kh6 {[%clk 0:00:10]} 94. Rb1 {[%clk 0:00:19]}  Kg5 {[%clk 0:00:11]} 95. Rg1+ {[%clk 0:00:19]}  Kf6 {[%clk 0:00:11]} 96. Ra1 {[%clk 0:00:20]}  Rd3+ {[%clk 0:00:11]} 97. Ke4 {[%clk 0:00:18]}  Rd4+ {[%clk 0:00:11]} 98. Kf3 {[%clk 0:00:19]}  g5 {[%clk 0:00:11]} 99. Ra6+ {[%clk 0:00:18]}  Ke5 {[%clk 0:00:12]} 100. Ra5+ {[%clk 0:00:17]}  Kf6 {[%clk 0:00:12]} 101. Ra6+ {[%clk 0:00:18]}  Kg7 {[%clk 0:00:13]} 102. Rb6 {[%clk 0:00:18]}  g4+ {[%clk 0:00:11]} 103. Kf2 {[%clk 0:00:17]}  Kf7 {[%clk 0:00:11]} 104. Ra6 {[%clk 0:00:17]}  Rd3 {[%clk 0:00:10]} 105. Ke2 {[%clk 0:00:17]}  Re3+ {[%clk 0:00:10]} 106. Kf2 {[%clk 0:00:17]}  g3+ {[%clk 0:00:11]} 107. Kg2 {[%clk 0:00:17]}  Nh4+ {[%clk 0:00:11]} 108. Kh3 {[%clk 0:00:16]}  g2+ {[%clk 0:00:12]} 109. Kh2 {[%clk 0:00:17]}  Rh3+ {[%clk 0:00:11]} 110. Kxh3 {[%clk 0:00:15]}  g1=Q {[%clk 0:00:10]} 111. Rh6 {[%clk 0:00:14]}  Ng6 {[%clk 0:00:10]} 112. Rh5 {[%clk 0:00:13]}  Qh1+ {[%clk 0:00:09]} 113. Kg4 {[%clk 0:00:13]}  Qd1+ {[%clk 0:00:09]} 114. Kg5 {[%clk 0:00:13]}  Qd2+ {[%clk 0:00:09]} 115. Kg4 {[%clk 0:00:13]}  Qf4+ {[%clk 0:00:10]} 116. Kh3 {[%clk 0:00:14]}  Qf3+ {[%clk 0:00:10]} 0-1


[Site "https://www.chess.com"]

[Event "Titled Tuesday Blitz May 31 Late 2022"]
[White "Zherebtsova, Alexandra"]
[Black "Harsh Suresh"]
[WhiteFideId "24129518"]
[BlackFideId "45018464"]
[WhiteElo "2025"]
[BlackElo "2020"]
[Result "0-1"]
[Round "01"]
[TimeControl "180+1"]
[Date "2022.06.01"]
[WhiteClock "0:00:09"]
[BlackClock "0:00:07"]

1. d4 {[%clk 0:02:58]}  g6 {[%clk 0:02:58]} 2. Nf3 {[%clk 0:02:57]}  Bg7 {[%clk 0:02:58]} 3. c4 {[%clk 0:02:58]}  d6 {[%clk 0:02:57]} 4. Nc3 {[%clk 0:02:58]}  Nf6 {[%clk 0:02:56]} 5. e4 {[%clk 0:02:58]}  O-O {[%clk 0:02:56]} 6. h3 {[%clk 0:02:59]}  e5 {[%clk 0:02:55]} 7. d5 {[%clk 0:02:57]}  a5 {[%clk 0:02:54]} 8. g4 {[%clk 0:02:56]}  Na6 {[%clk 0:02:53]} 9. Be3 {[%clk 0:02:56]}  b6 {[%clk 0:02:48]} 10. Nd2 {[%clk 0:02:56]}  Nc5 {[%clk 0:02:47]} 11. Qc2 {[%clk 0:02:54]}  Bd7 {[%clk 0:02:45]} 12. O-O-O {[%clk 0:02:54]}  a4 {[%clk 0:02:44]} 13. a3 {[%clk 0:02:52]}  Qb8 {[%clk 0:02:37]} 14. Be2 {[%clk 0:02:46]}  c6 {[%clk 0:02:37]} 15. g5 {[%clk 0:02:41]}  Ne8 {[%clk 0:02:36]} 16. h4 {[%clk 0:02:37]}  Nc7 {[%clk 0:02:31]} 17. h5 {[%clk 0:02:32]}  cxd5 {[%clk 0:02:31]} 18. exd5 {[%clk 0:01:44]}  Bf5 {[%clk 0:02:22]} 19. Nde4 {[%clk 0:01:38]}  Nxe4 {[%clk 0:02:19]} 20. Nxe4 {[%clk 0:01:37]}  b5 {[%clk 0:02:19]} 21. f3 {[%clk 0:01:30]}  bxc4 {[%clk 0:02:17]} 22. Bxc4 {[%clk 0:01:27]}  Rc8 {[%clk 0:02:11]} 23. Kb1 {[%clk 0:01:26]}  Nb5 {[%clk 0:02:04]} 24. Ka1 {[%clk 0:01:25]}  Nd4 {[%clk 0:01:58]} 25. Bxd4 {[%clk 0:01:19]}  exd4 {[%clk 0:01:59]} 26. Qd3 {[%clk 0:01:17]}  Qb6 {[%clk 0:01:24]} 27. Rh2 {[%clk 0:01:11]}  Be5 {[%clk 0:01:15]} 28. Rc2 {[%clk 0:01:07]}  gxh5 {[%clk 0:01:10]} 29. Rh1 {[%clk 0:01:03]}  Bg6 {[%clk 0:01:06]} 30. Rf1 {[%clk 0:00:53]}  Rab8 {[%clk 0:00:56]} 31. Rff2 {[%clk 0:00:50]}  Bg3 {[%clk 0:00:31]} 32. Rfe2 {[%clk 0:00:41]}  h4 {[%clk 0:00:29]} 33. Qd1 {[%clk 0:00:23]}  Be5 {[%clk 0:00:21]} 34. Bd3 {[%clk 0:00:20]}  h3 {[%clk 0:00:15]} 35. Nf6+ {[%clk 0:00:17]}  Bxf6 {[%clk 0:00:14]} 36. gxf6 {[%clk 0:00:16]}  Rxc2 {[%clk 0:00:14]} 37. Rxc2 {[%clk 0:00:15]}  Qb3 {[%clk 0:00:13]} 38. Bxg6 {[%clk 0:00:13]}  hxg6 {[%clk 0:00:08]} 39. Qd2 {[%clk 0:00:13]}  Qe3 {[%clk 0:00:07]} 40. Qxe3 {[%clk 0:00:12]}  dxe3 {[%clk 0:00:08]} 41. Rh2 {[%clk 0:00:10]}  Re8 {[%clk 0:00:07]} 42. Ka2 {[%clk 0:00:09]}  e2 {[%clk 0:00:07]} 0-1


[Site "https://www.chess.com"]

[Event "Titled Tuesday Blitz May 31 Late 2022"]
[White "Al-Tarboush, Ward"]
[Black "Paravyan, David"]
[WhiteFideId "7601450"]
[BlackFideId "4194985"]
[WhiteElo "2294"]
[BlackElo "2569"]
[Result "1/2-1/2"]
[Round "02"]
[TimeControl "180+1"]
[Date "2022.05.31"]
[WhiteClock "0:00:13"]
[BlackClock "0:00:08"]

1. e4 {[%clk 0:01:34]}  e5 {[%clk 0:02:57]} 2. Nf3 {[%clk 0:01:32]}  Nf6 {[%clk 0:02:58]} 3. Nxe5 {[%clk 0:01:31]}  d6 {[%clk 0:02:58]} 4. Nf3 {[%clk 0:01:30]}  Nxe4 {[%clk 0:02:59]} 5. Qe2 {[%clk 0:01:30]}  Qe7 {[%clk 0:02:59]} 6. d3 {[%clk 0:01:31]}  Nf6 {[%clk 0:02:59]} 7. Bg5 {[%clk 0:01:31]}  Qxe2+ {[%clk 0:02:57]} 8. Bxe2 {[%clk 0:01:32]}  Be7 {[%clk 0:02:57]} 9. Nc3 {[%clk 0:01:32]}  h6 {[%clk 0:02:53]} 10. Bh4 {[%clk 0:01:32]}  c6 {[%clk 0:02:48]} 11. Ne4 {[%clk 0:01:31]}  Nxe4 {[%clk 0:02:40]} 12. dxe4 {[%clk 0:01:32]}  Bxh4 {[%clk 0:02:39]} 13. Nxh4 {[%clk 0:01:32]}  Ke7 {[%clk 0:02:37]} 14. O-O-O {[%clk 0:01:31]}  Be6 {[%clk 0:02:29]} 15. Rhe1 {[%clk 0:01:20]}  Nd7 {[%clk 0:02:21]} 16. h3 {[%clk 0:01:13]}  g5 {[%clk 0:02:17]} 17. Nf3 {[%clk 0:01:07]}  Ne5 {[%clk 0:02:12]} 18. Nd4 {[%clk 0:01:07]}  h5 {[%clk 0:02:02]} 19. Nxe6 {[%clk 0:01:00]}  fxe6 {[%clk 0:02:03]} 20. g3 {[%clk 0:01:00]}  Raf8 {[%clk 0:02:02]} 21. Rf1 {[%clk 0:01:01]}  Nd7 {[%clk 0:01:52]} 22. f4 {[%clk 0:00:57]}  gxf4 {[%clk 0:01:45]} 23. gxf4 {[%clk 0:00:58]}  Nc5 {[%clk 0:01:46]} 24. e5 {[%clk 0:00:57]}  dxe5 {[%clk 0:01:44]} 25. fxe5 {[%clk 0:00:58]}  Rxf1 {[%clk 0:01:37]} 26. Rxf1 {[%clk 0:00:59]}  Nd7 {[%clk 0:01:38]} 27. Rg1 {[%clk 0:00:56]}  Nxe5 {[%clk 0:01:38]} 28. Rg5 {[%clk 0:00:54]}  Kf6 {[%clk 0:01:25]} 29. Rxh5 {[%clk 0:00:54]}  Rxh5 {[%clk 0:00:41]} 30. Bxh5 {[%clk 0:00:55]}  Kg5 {[%clk 0:00:42]} 31. Be2 {[%clk 0:00:46]}  Kh4 {[%clk 0:00:42]} 32. Kd1 {[%clk 0:00:30]}  Kxh3 {[%clk 0:00:40]} 33. Kd2 {[%clk 0:00:30]}  Kh4 {[%clk 0:00:40]} 34. Ke3 {[%clk 0:00:31]}  Kg5 {[%clk 0:00:40]} 35. Ke4 {[%clk 0:00:31]}  Kf6 {[%clk 0:00:41]} 36. a4 {[%clk 0:00:28]}  a5 {[%clk 0:00:38]} 37. c3 {[%clk 0:00:28]}  Nf7 {[%clk 0:00:27]} 38. Kd4 {[%clk 0:00:23]}  Nd6 {[%clk 0:00:28]} 39. Kc5 {[%clk 0:00:22]}  Nc8 {[%clk 0:00:15]} 40. b4 {[%clk 0:00:22]}  axb4 {[%clk 0:00:15]} 41. cxb4 {[%clk 0:00:23]}  Ke7 {[%clk 0:00:16]} 42. a5 {[%clk 0:00:20]}  Kd7 {[%clk 0:00:14]} 43. b5 {[%clk 0:00:11]}  cxb5 {[%clk 0:00:13]} 44. Bxb5+ {[%clk 0:00:12]}  Kc7 {[%clk 0:00:13]} 45. Bc4 {[%clk 0:00:12]}  e5 {[%clk 0:00:13]} 46. Bd5 {[%clk 0:00:12]}  Ne7 {[%clk 0:00:04]} 47. Be4 {[%clk 0:00:12]}  Nc6 {[%clk 0:00:04]} 48. a6 {[%clk 0:00:11]}  b6+ {[%clk 0:00:04]} 49. Kd5 {[%clk 0:00:10]}  Nb4+ {[%clk 0:00:02]} 50. Kxe5 {[%clk 0:00:10]}  Nxa6 {[%clk 0:00:03]} 51. Kd4 {[%clk 0:00:10]}  Nc5 {[%clk 0:00:04]} 52. Bf3 {[%clk 0:00:09]}  Kd6 {[%clk 0:00:04]} 53. Kc4 {[%clk 0:00:10]}  Nd7 {[%clk 0:00:03]} 54. Kb5 {[%clk 0:00:09]}  Kc7 {[%clk 0:00:03]} 55. Bg4 {[%clk 0:00:09]}  Ne5 {[%clk 0:00:04]} 56. Bf5 {[%clk 0:00:09]}  Nc6 {[%clk 0:00:05]} 57. Bh3 {[%clk 0:00:09]}  Nd4+ {[%clk 0:00:05]} 58. Kc4 {[%clk 0:00:09]}  Ne2 {[%clk 0:00:06]} 59. Kb5 {[%clk 0:00:09]}  Nc3+ {[%clk 0:00:06]} 60. Kb4 {[%clk 0:00:09]}  Ne4 {[%clk 0:00:06]} 61. Bg2 {[%clk 0:00:09]}  Nd6 {[%clk 0:00:06]} 62. Bh1 {[%clk 0:00:08]}  Kd8 {[%clk 0:00:07]} 63. Bg2 {[%clk 0:00:08]}  Ke7 {[%clk 0:00:08]} 64. Bh1 {[%clk 0:00:09]}  Kf6 {[%clk 0:00:09]} 65. Bg2 {[%clk 0:00:09]}  Ke5 {[%clk 0:00:10]} 66. Bh1 {[%clk 0:00:10]}  Kd4 {[%clk 0:00:10]} 67. Bc6 {[%clk 0:00:10]}  Ke5 {[%clk 0:00:10]} 68. Bh1 {[%clk 0:00:10]}  Ke6 {[%clk 0:00:11]} 69. Bg2 {[%clk 0:00:11]}  Kd7 {[%clk 0:00:11]} 70. Bh3+ {[%clk 0:00:11]}  Kc7 {[%clk 0:00:11]} 71. Bg2 {[%clk 0:00:12]}  Kb8 {[%clk 0:00:11]} 72. Bh1 {[%clk 0:00:12]}  Ka7 {[%clk 0:00:12]} 73. Bg2 {[%clk 0:00:13]}  Nf5 {[%clk 0:00:10]} 74. Bf1 {[%clk 0:00:14]}  Ne3 {[%clk 0:00:10]} 75. Bh3 {[%clk 0:00:14]}  Kb7 {[%clk 0:00:10]} 76. Be6 {[%clk 0:00:13]}  Kc6 {[%clk 0:00:10]} 77. Bh3 {[%clk 0:00:13]}  Nc2+ {[%clk 0:00:10]} 78. Kc3 {[%clk 0:00:12]}  Ne3 {[%clk 0:00:08]} 79. Kb4 {[%clk 0:00:12]}  b5 {[%clk 0:00:08]} 80. Bd7+ {[%clk 0:00:12]}  Kxd7 {[%clk 0:00:08]} 81. Kxb5 {[%clk 0:00:13]} 1/2-1/2


[Site "https://www.chess.com"]

[Event "Titled Tuesday Blitz May 31 Late 2022"]
[White "Bas Mas, Jose Joaquin"]
[Black "Darini, Pouria"]
[WhiteFideId "22219064"]
[BlackFideId "12502200"]
[WhiteElo "2233"]
[BlackElo "2483"]
[Result "0-1"]
[Round "02"]
[TimeControl "180+1"]
[Date "2022.06.01"]
[WhiteClock "0:00:15"]
[BlackClock "0:00:21"]

1. e4 {[%clk 0:03:00]}  c5 {[%clk 0:02:58]} 2. Nc3 {[%clk 0:03:00]}  Nc6 {[%clk 0:02:57]} 3. Bb5 {[%clk 0:03:00]}  Nd4 {[%clk 0:02:54]} 4. Nf3 {[%clk 0:03:00]}  Nxb5 {[%clk 0:02:54]} 5. Nxb5 {[%clk 0:03:00]}  a6 {[%clk 0:02:55]} 6. Nc3 {[%clk 0:03:01]}  e6 {[%clk 0:02:55]} 7. d4 {[%clk 0:03:00]}  cxd4 {[%clk 0:02:56]} 8. Qxd4 {[%clk 0:03:01]}  b5 {[%clk 0:02:56]} 9. O-O {[%clk 0:03:00]}  Bb7 {[%clk 0:02:57]} 10. a4 {[%clk 0:02:42]}  b4 {[%clk 0:02:57]} 11. Ne2 {[%clk 0:02:41]}  Nf6 {[%clk 0:02:54]} 12. Bg5 {[%clk 0:02:38]}  h6 {[%clk 0:02:41]} 13. Bxf6 {[%clk 0:02:06]}  Qxf6 {[%clk 0:02:42]} 14. Qxf6 {[%clk 0:02:05]}  gxf6 {[%clk 0:02:43]} 15. Nd2 {[%clk 0:01:54]}  Bc5 {[%clk 0:02:23]} 16. c4 {[%clk 0:01:51]}  bxc3 {[%clk 0:02:20]} 17. Nxc3 {[%clk 0:01:51]}  Rb8 {[%clk 0:02:18]} 18. Rfc1 {[%clk 0:01:48]}  Bd4 {[%clk 0:02:08]} 19. Rc2 {[%clk 0:01:20]}  Bc6 {[%clk 0:02:06]} 20. b3 {[%clk 0:01:14]}  Ke7 {[%clk 0:02:04]} 21. Rd1 {[%clk 0:01:14]}  Rhc8 {[%clk 0:02:02]} 22. Ne2 {[%clk 0:01:10]}  Ba7 {[%clk 0:01:54]} 23. Kf1 {[%clk 0:01:11]}  Ba8 {[%clk 0:01:41]} 24. Rdc1 {[%clk 0:01:08]}  Rxc2 {[%clk 0:01:40]} 25. Rxc2 {[%clk 0:01:06]}  Bc6 {[%clk 0:01:41]} 26. g4 {[%clk 0:00:59]}  Rb4 {[%clk 0:01:28]} 27. f3 {[%clk 0:00:59]}  Be3 {[%clk 0:01:25]} 28. Ke1 {[%clk 0:00:47]}  Bxd2+ {[%clk 0:01:18]} 29. Kxd2 {[%clk 0:00:48]}  Rxb3 {[%clk 0:01:19]} 30. Nd4 {[%clk 0:00:48]}  Ra3 {[%clk 0:01:15]} 31. Nxc6+ {[%clk 0:00:42]}  dxc6 {[%clk 0:01:16]} 32. Rxc6 {[%clk 0:00:43]}  Rxa4 {[%clk 0:01:16]} 33. Rc7+ {[%clk 0:00:42]}  Kf8 {[%clk 0:01:09]} 34. Rc3 {[%clk 0:00:42]}  Ra2+ {[%clk 0:01:08]} 35. Ke3 {[%clk 0:00:38]}  Ke7 {[%clk 0:01:06]} 36. Rc7+ {[%clk 0:00:34]}  Ke8 {[%clk 0:01:07]} 37. Rc3 {[%clk 0:00:35]}  Ra4 {[%clk 0:01:07]} 38. h4 {[%clk 0:00:34]}  Ra5 {[%clk 0:01:07]} 39. h5 {[%clk 0:00:34]}  Ra4 {[%clk 0:01:07]} 40. Rb3 {[%clk 0:00:34]}  a5 {[%clk 0:01:06]} 41. Rb8+ {[%clk 0:00:33]}  Ke7 {[%clk 0:01:06]} 42. Rb7+ {[%clk 0:00:34]}  Kf8 {[%clk 0:01:04]} 43. Rb8+ {[%clk 0:00:34]}  Kg7 {[%clk 0:01:05]} 44. Rb3 {[%clk 0:00:34]}  Ra1 {[%clk 0:01:02]} 45. Rb8 {[%clk 0:00:33]}  Ra3+ {[%clk 0:01:01]} 46. Ke2 {[%clk 0:00:33]}  a4 {[%clk 0:00:51]} 47. Ra8 {[%clk 0:00:33]}  Ra2+ {[%clk 0:00:51]} 48. Ke3 {[%clk 0:00:33]}  Ra1 {[%clk 0:00:52]} 49. Kf4 {[%clk 0:00:27]}  Ra3 {[%clk 0:00:41]} 50. Kg3 {[%clk 0:00:26]}  Ra2 {[%clk 0:00:39]} 51. Kf4 {[%clk 0:00:26]}  Ra1 {[%clk 0:00:38]} 52. Kg3 {[%clk 0:00:26]}  f5 {[%clk 0:00:34]} 53. exf5 {[%clk 0:00:23]}  exf5 {[%clk 0:00:34]} 54. gxf5 {[%clk 0:00:23]}  Kf6 {[%clk 0:00:34]} 55. Ra6+ {[%clk 0:00:22]}  Kg5 {[%clk 0:00:31]} 56. f4+ {[%clk 0:00:21]}  Kxh5 {[%clk 0:00:31]} 57. Ra7 {[%clk 0:00:20]}  Ra3+ {[%clk 0:00:25]} 58. Kg2 {[%clk 0:00:19]}  Kg4 {[%clk 0:00:25]} 59. Rxf7 {[%clk 0:00:19]}  Ra2+ {[%clk 0:00:25]} 60. Kf1 {[%clk 0:00:18]}  a3 {[%clk 0:00:23]} 61. f6 {[%clk 0:00:16]}  Rb2 {[%clk 0:00:21]} 62. Rg7+ {[%clk 0:00:16]}  Kf3 {[%clk 0:00:21]} 63. f7 {[%clk 0:00:15]}  Rb1# {[%clk 0:00:21]} 0-1


[Site "https://www.chess.com"]